Cogmind - Beta 13 @@@ ROGUE MODE // 2024.04.14 @ 01:19:35 Player: Michael Result: Self-destructed Performance ------------- Evolutions (1) 500 Regions Visited (2) 400 Robots Destroyed (12) 60 Value Destroyed (371) 371 Prototype IDs (0) 0 Alien Tech Used (0) 0 Bonus (0) 0 TOTAL SCORE: 1331 Bonus ------- None Cogmind --------- Core Integrity 266/400 Matter 218/300 Energy 250/250 System Corruption 0% Temperature Warning (346) Movement Treading (160) Location -9/Materials Parts ------- > --- POWER (1) -------- Ion Engine > --- PROPULSION (2) --- Light Treads Light Treads > --- UTILITY (3) ------ Heat Sink Large Storage Unit Hardened Light Armor Plating > --- WEAPON (3) ------- Particle Gun Light Assault Rifle Light Cannon > --- INVENTORY (15) --- Hardened Light Armor Plating Hardened Light Armor Plating Hardened Light Armor Plating Medium Laser Particle Gun Particle Gun Particle Gun Peak State ------------ > --- POWER ------------ Ion Engine > --- PROPULSION ------- Light Treads Light Treads > --- UTILITY ---------- Heat Sink Large Storage Unit Hardened Light Armor Plating > --- WEAPON ----------- Particle Gun Particle Gun Light Cannon > --- INVENTORY -------- Hardened Light Armor Plating Hardened Light Armor Plating Hardened Light Armor Plating Medium Laser Particle Gun Particle Gun [Rating: 13] Favorites ----------- Power Ion Engine Engine Ion Engine Propulsion Light Treads Treads Light Treads Wheel Compact Wheel Utility Large Storage Unit Device Heat Sink Storage Large Storage Unit Protection Hardened Light Armor Plating Weapon Particle Gun Energy Gun Particle Gun Energy Cannon Beam Cannon Ballistic Gun Light Assault Rifle Ballistic Cannon Light Cannon Build | -11 -10 -9 ------- Run | Yrd Mat Mat Slots Evolved 2 | . . 2 Power . | . . . Propulsion . | . . . Utility 1 | . . 1 Weapon 1 | . . 1 Parts Attached 22 | 6 12 4 Power 2 | 1 1 . Engine 2 | 1 1 . Core . | . . . Reactor . | . . . Propulsion 4 | 2 2 . Treads 2 | . 2 . Leg . | . . . Wheel 2 | 2 . . Hover . | . . . Flight . | . . . Utility 6 | 1 3 2 Device 2 | . 1 1 Storage 3 | 1 2 . Processor . | . . . Hackware . | . . . Protection 1 | . . 1 Artifact . | . . . Weapon 10 | 2 6 2 Energy Gun 4 | . 3 1 Energy Cannon 1 | . 1 . Ballistic Gun 4 | 2 1 1 Ballistic Cannon 1 | . 1 . Launcher . | . . . Special Weapon . | . . . Impact Weapon . | . . . Slashing Weapon . | . . . Piercing Weapon . | . . . Special Melee Weapon . | . . . Unidentified Prototypes . | . . . Parts Lost 4 | . 4 . Power 1 | . 1 . Propulsion 1 | . 1 . Utility . | . . . Weapon 2 | . 2 . Highest Loss Streak 3 | . 3 . To Critical Strikes . | . . . Average Slot Usage (%) 91 | . 86 98 Engine 12 | . 12 11 Treads 11 | . 6 22 Wheel 12 | . 20 . Device 6 | . 5 10 Storage 13 | . 15 11 Protection 4 | . . 11 Energy Gun 13 | . 9 21 Energy Cannon 3 | . 5 . Ballistic Gun 5 | . 8 . Ballistic Cannon 5 | . 2 11 Naked Turns . | . . . Heaviest Build 40 | 12 33 40 Greatest Support 40 | 32 40 40 Greatest Overweight (x) 2 | 2 1 . Average Overweight (x) . | . . . Largest Inventory Capacity 15 | 8 15 15 Average Capacity 14 | 7 14 15 Most Carried 15 | 6 15 8 Average Carried 8 | 3 11 6 Final Capacity 15 | 8 15 15 Final Carried 8 | 3 8 7 Class Distribution -------------------- 65% | Mutant 34% | Tank Dominant Class ---------------- Mutant | -10/Materials Tank | -9/Materials Resources | -11 -10 -9 ----------- Run | Yrd Mat Mat Matter Collected 446 | 220 168 58 Remotely . | . . . Salvage Created 428 | . 244 184 Parts 19 | . 5 14 Haulers Intercepted . | . . . Recyclers Shooed . | . . . Parts Field Recycled . | . . . Retrieved Matter . | . . . Parts Self-Destructed . | . . . Prevented . | . . . Kills | -11 -10 -9 ------- Run | Yrd Mat Mat Combat Hostiles Destroyed 12 | . 6 6 Guns 5 | . 1 4 Cannons 7 | . 5 2 Classes Destroyed 3 | . 1 2 Swarmer 3 | . . 3 Grunt 7 | . 6 1 Sentry 2 | . . 2 Best Kill Streak 4 | . 3 4 Combat Bots Only 4 | . 3 4 Max Kills in Single Turn 1 | . 1 1 Gunslinging . | . . . Exploded . | . . . Melee . | . . . Uniques/NPCs Destroyed . | . . . Combat | -11 -10 -9 -------- Run | Yrd Mat Mat Hostile Shots Fired 153 | . 62 91 Missed 33 | . 12 21 Damage Taken 1346 | . 589 757 Core 294 | . 160 134 Absorbed by Shields . | . . . Regen/Repaired (Parts) 26 | . . 26 Core Remaining (%) 68 | 100 36 . Volleys Fired 60 | . 36 24 Largest 3 | . 2 3 Hottest 165 | . 80 165 Shots Fired 115 | . 63 52 Gun 66 | . 38 28 Cannon 49 | . 25 24 Launcher . | . . . Special . | . . . Kinetic 56 | . 28 28 Thermal 59 | . 35 24 Explosive . | . . . Electromagnetic . | . . . Robot Hit Streak 7 | . 5 7 Robot Miss Streak 4 | . 3 4 Penetration Max . | . . . Secondary Targets . | . . . Shots Hit Robots 67 | . 39 28 Core Hits 23 | . 12 11 Critical Kills . | . . . Critical Parts Destroyed 1 | . 1 . Critical Strikes 1 | . 1 . Destroy 1 | . 1 . Melee Attacks . | . . . Impact . | . . . Slashing . | . . . Piercing . | . . . Sneak Attacks . | . . . Combat Hostiles . | . . . Follow-up Attacks . | . . . Damage Inflicted 948 | . 516 432 Guns 391 | . 167 224 Cannons 557 | . 349 208 Explosions . | . . . Melee . | . . . Ramming . | . . . Kinetic 349 | . 117 232 Thermal 599 | . 399 200 Explosive . | . . . Electromagnetic . | . . . Impact . | . . . Slashing . | . . . Piercing . | . . . Highest Corruption . | . . . Average Corruption . | . . . Corruption Purged . | . . . Corruption Blocked . | . . . Overload Shots . | . . . Overflow Damage 5 | . 5 . Projectiles 5 | . 5 . Explosions . | . . . Melee . | . . . Knockbacks 4 | . . 4 Impact . | . . . Kinetic 3 | . . 3 Secondary 1 | . . 1 Self-Inflicted Damage . | . . . Shots . | . . . Rammed . | . . . Targets Rammed . | . . . Kicked . | . . . Crushed . | . . . Highest Temperature 354 | . 238 354 Average Temperature 103 | . 69 149 Received Heat Transfer 567 | . 336 231 Effects 2 | . . 2 Shutdowns 1 | . . 1 Interference 1 | . . 1 Siege Activations . | . . . Robots Corrupted . | . . . Combat Hostiles . | . . . Parts Fried . | . . . Impact Corruptions . | . . . Robots Melted . | . . . Combat Hostiles . | . . . Parts Melted 3 | . 3 . Heat Transferred 1369 | . 888 481 Parts Sabotaged . | . . . Parts Stolen . | . . . Parts Stripped . | . . . Power Chain Reactions . | . . . Alert | -11 -10 -9 ------- Run | Yrd Mat Mat Peak Influence 173 | . 155 173 Initial . | . . . Average 70 | . 67 91 Maximum Alert Level . | . . . Low Security (%) 100 | 100 100 100 Level 1 . | . . . Level 2 . | . . . Level 3 . | . . . Level 4 . | . . . Level 5 . | . . . High Security . | . . . Max Security . | . . . Squads Dispatched 2 | . 2 . Investigation 1 | . 1 . Extermination . | . . . Reinforcement 1 | . 1 . Assault . | . . . Garrison . | . . . Intercept . | . . . Searches Triggered . | . . . Construction Impeded . | . . . Haulers Reinforced . | . . . Active Scanning Responses . | . . . Cargo Convoy Interrupts . | . . . Stealth | -11 -10 -9 --------- Run | Yrd Mat Mat Distress Signals 3 | . 1 2 Communications Jammed . | . . . Distress Signals . | . . . Times Spotted 25 | . 8 17 Peak Tracking Total 8 | . 4 8 Tactical Retreats 1 | . . 1 Traps | -11 -10 -9 ------- Run | Yrd Mat Mat Traps Triggered 1 | . 1 . Indirectly . | . . . Trap Hack Attempts . | . . . Triggered . | . . . Disarmed . | . . . Reprogrammed . | . . . Reused . | . . . Traps Extracted . | . . . Installed . | . . . Triggered . | . . . Machines | -11 -10 -9 ---------- Run | Yrd Mat Mat Machines Disabled . | . . . Max in Single Turn . | . . . Machines Repaired . | . . . Machines Dismantled . | . . . Machines Sabotaged . | . . . Overloaded Fab Kills . | . . . Hacking | -11 -10 -9 --------- Run | Yrd Mat Mat Machines Accessed 2 | . 1 1 Terminals . | . . . Fabricators . | . . . Repair Stations 1 | . . 1 Recycling Units 1 | . 1 . Scanalyzers . | . . . Garrison Access . | . . . Total Hacks 6 | . 3 3 Successful 4 | . 2 2 Failed 2 | . 1 1 Catastrophic . | . . . Database Lockouts . | . . . Manual . | . . . Terminals . | . . . Fabricators . | . . . Repair Stations 3 | . . 3 Recycling Units 3 | . 3 . Scanalyzers . | . . . Garrison Access . | . . . Terminal Hacks . | . . . Fabricator Hacks . | . . . Repair Station Hacks 2 | . . 2 Scan Component 1 | . . 1 Repair 1 | . . 1 Recycling Unit Hacks 2 | . 2 . Report Inventory 1 | . 1 . Retrieve Components 1 | . 1 . Scanalyzer . | . . . Garrison Access Hacks . | . . . Unauthorized Hacks . | . . . Terminals . | . . . Fabricators . | . . . Repair Stations . | . . . Recycling Units . | . . . Scanalyzers . | . . . Garrison Access . | . . . Data Cores Recovered . | . . . Used . | . . . Hacking Detections 1 | . . 1 Full Trace Events . | . . . Feedback Events . | . . . Feedback Blocked . | . . . Robot Schematics Acquired . | . . . Robots Built . | . . . Authchips . | . . . Time . | . . . Total Robot Build Rating . | . . . Part Schematics Acquired . | . . . Parts Built . | . . . Authchips . | . . . Time . | . . . Total Part Build Rating . | . . . Parts Repaired 1 | . . 1 Time 26 | . . 26 Parts Recycled . | . . . Recycled Matter . | . . . Retrieved Matter . | . . . Retrieved Components 1 | . 1 . Parts Scanalyzed . | . . . Part Schematics Acquired . | . . . Parts Damaged . | . . . Bothacking | -11 -10 -9 ------------ Run | Yrd Mat Mat Used RIF Installer . | . . . Robots Hacked . | . . . Non-combat . | . . . Combat . | . . . Robot Hacks Applied . | . . . Relay Couplers Released . | . . . Fabnet Peak Effective % . | . . . Robots Rewired . | . . . Allies Hacked . | . . . Hacks Repelled . | . . . Allies | -11 -10 -9 -------- Run | Yrd Mat Mat Total Allies . | . . . Largest Group . | . . . Highest-Rated Group . | . . . Highest-Rated Ally . | . . . Total Orders . | . . . Ally Attacks . | . . . Total Damage . | . . . Kills . | . . . Allies Corrupted . | . . . Allies Melted . | . . . Intel | -11 -10 -9 ------- Run | Yrd Mat Mat Robot Analysis Total . | . . . Derelict Logs Recovered . | . . . Drone Launches . | . . . Drone Recoveries . | . . . Exploration | -11 -10 -9 ------------- Run | Yrd Mat Mat Turns Passed 728 | 57 421 250 Spaces Moved 391 | 49 248 94 Core 19 | 19 . . Treads 149 | . 55 94 Legs . | . . . Wheels 223 | 30 193 . Hover . | . . . Flight . | . . . Fastest Speed 50 | 50 100 160 Average Speed 122 | 88 115 160 Slowest Speed 160 | 150 160 160 Overloaded Moves . | . . . Propulsion Burnouts . | . . . Robots Hopped . | . . . Cave-ins Triggered . | . . . Exploration Rate (%) 11 | 4 25 6 Regions Visited 2 Branch Regions . Pre-discovered Areas . | . . . Known Exits Taken . | . . . Unknown Exits Taken 2 | 1 1 . Scrap Searched . | . . . Spaces Dug . | . . . Terrain Destroyed . | . . . Melee . | . . . Projectile . | . . . AOE . | . . . Terrain Rammed . | . . . Walls Destroyed . | . . . Machines Disabled . | . . . Actions | -11 -10 -9 --------- Run | Yrd Mat Mat Total 538 | 61 327 150 Wait 38 | . 12 26 Move 389 | 48 247 94 Hop . | . . . Pick Up 23 | 7 14 2 Fast Attach 2 | 2 . . Attach 16 | 4 9 3 Detach 2 | . 2 . Swap 4 | . 3 1 Drop 4 | . 4 . Fire 60 | . 36 24 Melee . | . . . Ram . | . . . Kick . | . . . Crush . | . . . Escape Stasis . | . . . Rewire . | . . . Trap . | . . . Miscellaneous . | . . . Route ------- -11/Scrapyard -10/Materials -9/Materials History --------- Turn | Location | Event 15 | -11/Scrapyard | Discovered new exit (range 16) 58 | -11/Scrapyard | Entered Materials 308 | -10/Materials | Build established: Mutant 351 | -10/Materials | Core integrity fell below 50% 395 | -10/Materials | Lost 3 parts (1p1n1w) 438 | -10/Materials | Discovered new exit (range 9) 479 | -10/Materials | Entered another Materials area 479 | -9/Materials | Evolved 2 slots: Utility x1, Weapon x1 636 | -9/Materials | Repaired Heat Sink 729 | -9/Materials | Self-destructed Last Messages --------------- repairs. 00636_ Acquired Heat Sink. 00648_ K-01 Serf collects debris. 00658_ Acquired 10 matter. 00676_ Y-45 Defender destroyed. 00681_ K-01 Serf collects debris. 00682_ G-34 Mercenary destroyed. 00685_ K-01 Serf collects debris. 00709_ W-16 Scout sends out distress signal. 00710_ G-47 Trooper knocked back. 00715_ Overheating: System interference. 00715_ Heat Sink temporarily disabled. 00716_ K-01 Serf collects debris. 00717_ G-47 Trooper knocked back. 00720_ K-01 Serf collects debris. 00724_ W-16 Scout sends out distress signal. 00726_ Critical hit (Burn: +37). 00726_ G-47 Trooper knocked back. 00728_ Power failure, Ion Engine shutdown. 00728_ K-01 Serf collects debris. Map ----- +----------------------------------------------------+ | ??????????????????????????????????????????? | | ??????????????????????????????????????????? | | ??????????????????????????????????????????? | | ??????????????????????????????????????????? | | ??????????????????????????????????????????? | | ??????????????????????????????????????????? | | ??????????????????????????????????????????? | | ??????????????????????????????????????????? | | ??????????????????????????????????????????? | | ??????????????????????????????????????????? | | ??????????????????????????????????????????? | | ??????????????????????????????????????????? | | ??????????????????????????????????????????? | | ??????????????????????????????????????????? | | ??????????????????????????????????????????? | | ??????????????????????????????????????????? | | ??????????????????????????????????????????? | | ???????? ????????????????????????????????? | | ???????? ??????????????????????#????????? | | ????????? ???????????????????? #????????? | | ?????????"" ?????????????????? #????????? | | ????????""" ??###+###??????? ##???????? | | ???? """ ### ####### #???????? | | ???? s s % ! %#???????? | | ???? s k g=%[ #???????? | | ???? k s @ [!g* #???????? | | ???????########## !% #######% #???????? | | ????????????????## ##????????%###???????? | | ?????????????????# #????????????????????? | | ?????????????????# #????????????????????? | | ???????????????? / #????????????????????? | | ??????????????? # % #????????????????????? | | ?????????????? # #????????????????????? | | ????????????? ?# ########?????????????? | | ????????????###??# # #?????????????? | | ?????????????????# # #?????????????? | | ?????????????????# # #?????????????? | | ?????????????????# + " " #?????????????? | | ?????????????????# # "R" #?????????????? | | ?????????????????# # """ #?????????????? | | ?????????????????# ########?????????????? | | ?????????????????# #????????????????????? | | ?????????????????# #????????????????????? | | ?????????????????# #????????????????????? | | ?????????????????# #????????????????????? | | ?????????????????# #????????????????????? | | ?????????????????# #????????????????????? | | ????????????????## %##???????????????????? | | ????????????????# ########????????????? | | ????????????????# % ** #????????????? | +----------------------------------------------------+ Best States ------------- Heat Dissipation 38 Energy Generation 10 Energy Capacity 250 Matter Stores 300 Matter Capacity 300 Sight Range 16 Terrain Scan Density 10 Armor Coverage 150 Evasion (%) 40 Recoil Reduction 2 Item Schematics ----------------- None Robot Schematics ------------------ None Fabricated ------------ Nothing Alien Tech Used ----------------- None Achievements -------------- None Challenges ------------ None Game ------ Seed CoordinationPhasePropulsion Manual? 0 Play Time 00:10:48 Cumulative 4.3 hours Start 2024.04.14 @ 01:11:13 End 2024.04.14 @ 01:19:35 Sessions 1 Manual Loads 0 Difficulty Rogue Special Mode None Game No. 5 Rogue 5 Adventurer 0 Explorer 0 Win Type - Total 0 Types 0/0/0/0/0/0/0/0/0 Lore% 2 Gallery% 7 Achievement% 11 Wizard Run 0 Options --------- Layout 1 ASCII 0 Keyboard 0 Movement Arrows Keybinds 0 Fullscreen 2 Font 32/SmallcapsGlow Map View 50x35 Zoom Use 0% Tactical HUD 1 Map Filters NONE Filters NONE Steam 1 RUN: 21da56e7-0584-4910-a5a3-b80a1061281a